fUST/lending_fUST_20240101
["ID","MTS","AMOUNT","RATE_DAILY","PERIOD"]
[309763589,1704101411992,155.14279736,0.00021081,2]
[309763590,1704101425209,225.48252338,0.00021081,2]
[309763626,1704101432633,-154.87609912,0.00021993,4]
[309763627,1704101432642,-353.14491787,0.00021993,5]
[309763628,1704101432651,-5947.47531549,0.00021993,2]
[309763629,1704101432660,-5489.56518592,0.00021993,2]
[309763630,1704101432669,-4906.45463586,0.00022339,2]
[309763631,1704101432678,-901.87117603,0.0002234,2]
[309763632,1704101432687,-166.98988,0.00022559,2]
[309763635,1704101432698,-9896.05802049,0.00023,2]
[309763637,1704101432709,-120.77872144,0.00023041,2]
[309763640,1704101432719,-166.98988,0.000232,2]
[309763642,1704101432729,-166.98988,0.00023841,2]
[309763644,1704101432739,-200.0,0.00024189,7]
[309763646,1704101432748,-179.75505522,0.00024437,2]
[309763648,1704101432759,-250.08748589,0.00024437,2]
[309763650,1704101432770,-2086.50814561,0.00024437,2]
[309763652,1704101432779,-254.67957473,0.00024437,2]
[309763654,1704101432789,-10033.36908711,0.00024437,2]
[309763656,1704101432798,-209.6195044,0.00024437,2]
[309763658,1704101432807,-558.56608686,0.00024438,2]
[309763660,1704101432816,-1095.89400915,0.00024439,2]
[309763662,1704101432825,-1576.52385793,0.00024439,2]
[309763664,1704101432833,-201.46400286,0.00024439,2]
[309763665,1704101432842,-26449.99134881,0.00024439,2]
[309763666,1704101432851,-4636.97707483,0.00024439,2]
[309763855,1704101443691,-248.04645752,0.00024438,2]
[309763857,1704101443700,-14607.87483899,0.00024439,2]
[309763922,1704101447353,-18207.96760386,0.00024439,2]
[309763927,1704101562560,-154.87609912,0.00021993,4]
[309763928,1704101562581,-845.12390088,0.00022339,2]
[309763929,1704101812064,-400000.0,0.00045881,30]
[309763930,1704101816633,-57.66736381,0.00035,120]
[309763931,1704101816657,-169.64737904,0.00035,30]
[309763932,1704101816682,-150.8642222,0.00036425,30]
[309763933,1704101816707,-200.0,0.00039358,30]
[309763934,1704101816730,-200.0,0.00039358,30]
[309763935,1704101816753,-368.0,0.00039358,30]
[309763936,1704101816777,-650.83652427,0.00039998,30]
[309763937,1704101816801,-293.1850046,0.0004,30]
[309763938,1704101816825,-2275.38024278,0.0004,120]
[309763939,1704101816850,-456.472441,0.00041459,30]
[309763940,1704101816872,-415.897113,0.00041768,30]
[309763941,1704101816896,-456.472441,0.00041959,30]
[309763942,1704101816918,-431.99174566,0.00042095,30]
[309763943,1704101816941,-415.897113,0.0004229,30]
[309763944,1704101816969,-500.0,0.00042739,30]
[309763945,1704101816991,-512.38235262,0.00042739,30]
[309763946,1704101817015,-415.897113,0.00042812,30]
[309763947,1704101817049,-1000.0,0.00043,43]
[309763948,1704101817077,-200.0,0.00043293,30]
[309763949,1704101817101,-200.0,0.00043293,30]
[309763950,1704101817126,-200.0,0.00043293,30]
[309763951,1704101817151,-200.0,0.00043293,30]
[309763952,1704101817175,-275.0,0.00043293,30]
[309763953,1704101817199,-415.897113,0.00043334,30]
[309763954,1704101817224,-267488.31696373,0.000435,30]
[309763955,1704101817248,-2042.74416437,0.0004368,110]
[309763956,1704101817369,-415.897113,0.00043856,30]
[309763957,1704101817396,-2000.0,0.00043893,30]
[309763958,1704101817419,-2000.0,0.00043893,30]
[309763959,1704101817441,-183.776013,0.0004395,30]
[309763960,1704101817464,-15394.55997205,0.00044,60]
[309763961,1704101817489,-3672.0,0.00044356,30]
[309763962,1704101817511,-78265.96158676,0.00044599,30]
[309763963,1704101817534,-18075.25601811,0.000447,30]
[309763964,1704101885048,-154.87609912,0.00021993,4]
[309763965,1704101885070,-171.10469177,0.00022239,2]
[309763966,1704101885091,-131.0149435,0.00022339,2]
[309763967,1704101885112,-176.966475,0.0002275,2]
[309763968,1704101885133,-18858.03779061,0.0002293,2]
[309763969,1704101930216,11141.40411249,0.00017198,5]
[309763970,1704101949752,-154.87609912,0.00021992,2]
[309763971,1704101949774,-154.87609912,0.00021993,4]
[309763972,1704101949794,-167.41548529,0.000225,2]
[309763973,1704101949815,-155.12027472,0.00022928,2]
[309763974,1704101949836,-4861.50150069,0.00022929,2]
[309763975,1704101949858,-4370.56140499,0.0002293,2]
[309763976,1704101949879,-8343.64913607,0.0002293,2]
[309763977,1704101950219,5166.72406268,0.00017198,5]
[309763978,1704101964241,154.87609912,0.00020635,4]
[309763979,1704101971097,18831.63477527,0.00017198,2]
[309763980,1704101971649,5210.01915065,0.00017198,2]
[309763981,1704101973905,154.87609912,0.00017198,2]
[309763982,1704101976438,154.87609912,0.00017198,2]
[309763983,1704101977259,533.17266667,0.00017198,2]
[309763984,1704101984256,154.87609912,0.00020635,4]
[309763985,1704101987664,284.96428911,0.00017198,2]
[309763986,1704101987692,177.464407,0.00032877,120]
[309763987,1704101987876,297.6005845,0.00017198,2]
[309763988,1704101987906,154.87609912,0.00017198,2]
[309763989,1704101991104,18831.63477527,0.00017198,2]
[309763990,1704101992439,154.87609912,0.00017198,2]
[309763991,1704101995242,533.17266667,0.00017198,2]
[309763992,1704102004247,154.87609912,0.00020635,4]
[309763993,1704102005885,297.6005845,0.00017198,2]
[309763994,1704102005916,154.87609912,0.00017198,2]
[309763995,1704102011190,18831.63477527,0.00017198,2]
[309763996,1704102012437,154.87609912,0.00017198,2]
[309763997,1704102013245,533.17266667,0.00017198,2]
[309763998,1704102015152,-154.87609912,0.00021654,2]
[309763999,1704102015174,-156.48322816,0.00021654,2]
[309764000,1704102015196,-139.64067272,0.00021654,2]
[309764001,1704102022241,154.87609912,0.00020631,4]
[309764002,1704102023911,154.87609912,0.00017198,2]
[309764003,1704102027881,297.6005845,0.00017198,2]
[309764004,1704102029183,3168.00824863,0.00017198,2]
[309764005,1704102030484,154.87609912,0.00017198,2]
[309764006,1704102039327,533.17266667,0.00017198,2]
[309764007,1704102039907,254.54973642,0.00017198,2]
[309764008,1704102040249,154.87609912,0.00020631,4]
[309764009,1704102045894,423.20581348,0.00017198,2]
[309764010,1704102050180,14.38422171,0.000345,120]
[309764011,1704102050205,175.0,0.000345,120]
[309764012,1704102050225,175.0,0.000345,120]
[309764013,1704102050245,175.0,0.000345,120]
[309764014,1704102050266,175.0,0.000345,120]
[309764015,1704102050444,258.83347214,0.00017198,2]
[309764016,1704102055249,318.94181755,0.00017198,2]
[309764017,1704102056254,154.87609912,0.00020631,4]
[309764018,1704102081981,-154.87609912,0.00021647,2]
[309764019,1704102082005,-1733.29488981,0.00021648,2]
[309764020,1704102082029,-3638.82901107,0.00021649,5]
[309764021,1704102082331,154.87609912,0.00020631,4]
[309764022,1704102085782,205.38078422,0.00020631,2]
[309764023,1704102098270,154.87609912,0.00020631,4]
[309764024,1704102118342,154.87609912,0.00020631,4]
[309764025,1704102140264,154.87609912,0.00020631,4]
[309764026,1704102145979,197.31531579,0.00020631,2]
[309764027,1704102148171,-1721.45015767,0.00021643,2]
[309764028,1704102148191,-154.87609912,0.00021643,2]
[309764029,1704102148212,-1773.68924842,0.00021644,2]
[309764030,1704102148232,-154.87609912,0.00021644,2]
[309764031,1704102148252,-943.79443279,0.00021645,2]
[309764032,1704102148275,-156.48322816,0.00021646,2]
[309764033,1704102148295,-287.70349698,0.00021646,2]
[309764034,1704102148316,-4861.50150069,0.00021646,2]
[309764035,1704102148337,-164.57325592,0.00021647,2]
[309764036,1704102148357,-174.915562,0.00021655,2]
[309764037,1704102148377,-2673.73054559,0.00022235,5]
[309764038,1704102148398,-2580.14242679,0.00022469,2]
[309764039,1704102148419,-472.31,0.00022915,3]
[309764040,1704102148440,-393.6,0.00022915,3]
[309764041,1704102148465,-328.0,0.00022915,3]
[309764042,1704102148486,-273.33,0.00022915,3]
[309764043,1704102148506,-450.8673199,0.00022923,2]
[309764044,1704102148527,-155.71491645,0.00022923,2]
[309764045,1704102148549,-832.68512452,0.00022923,2]
[309764046,1704102148581,-155.45492139,0.00022924,2]
[309764047,1704102148601,-500.0,0.00022924,2]
[309764048,1704102148622,-501.54365902,0.00022924,2]
[309764049,1704102148642,-242.57432614,0.00022924,2]
[309764050,1704102148663,-500.0,0.00022924,2]
[309764051,1704102148683,-500.0,0.00022924,2]
[309764052,1704102148704,-188.03721384,0.00022924,2]
[309764053,1704102148725,-5224.14646549,0.00022925,2]
[309764054,1704102153098,-235.12094964,0.00021642,2]
[309764055,1704102160263,154.87609912,0.00020631,4]
[309764056,1704102168555,-500.0,0.00022926,4]
[309764057,1704102168580,-500.0,0.00022926,4]
[309764058,1704102168605,-500.0,0.00022926,4]
[309764059,1704102168629,-575.49388256,0.00022926,4]
[309764060,1704102168654,-499.99999999,0.00022926,4]
[309764061,1704102168681,-508.63291032,0.0002293,5]
[309764062,1704102178144,-227.77,0.00022915,3]
[309764063,1704102178169,-189.81,0.00022915,3]
[309764064,1704102178193,-158.18,0.00022915,3]
[309764065,1704102182265,154.87609912,0.00020631,4]
[309764066,1704102186862,-155.78372176,0.00022923,2]
[309764067,1704102186887,-310.782126,0.00022923,2]
[309764068,1704102186912,-225.12358269,0.00022923,2]
[309764069,1704102186936,-580.06185596,0.00022923,2]
[309764070,1704102186962,-525.13310452,0.00022923,2]
[309764071,1704102186991,-1670.0629526,0.00022923,2]
[309764072,1704102187016,-155.23623402,0.00022924,2]
[309764073,1704102187041,-166.83948169,0.00022924,2]
[309764074,1704102187067,-186.75580642,0.00022924,2]
[309764075,1704102187091,-9602.40023572,0.00022924,2]
[309764076,1704102188440,154.87609912,0.00020631,2]
[309764077,1704102198267,154.87609912,0.00020631,4]
[309764078,1704102218266,154.87609912,0.00020631,4]
[309764079,1704102234261,154.87609912,0.00020631,4]
[309764080,1704102254267,154.87609912,0.0002063,4]
[309764081,1704102274271,154.87609912,0.0002063,4]
[309764082,1704102279974,1000.0,0.00020631,2]
[309764083,1704102294279,154.87609912,0.0002063,4]
[309764084,1704102314779,154.87609912,0.00020631,4]
[309764085,1704102329474,158.4418249,0.00020631,2]
[309764086,1704102330776,154.87609912,0.0002063,4]
[309764087,1704102352979,154.87609912,0.0002063,4]
[309764088,1704102376787,154.87609912,0.0002063,4]
[309764089,1704102397282,154.87609912,0.00020629,4]
[309764090,1704102400506,155.92975685,0.0002063,2]
[309764091,1704102413294,154.87609912,0.00020629,4]
[309764092,1704102435280,154.87609912,0.00020629,4]
[309764093,1704102450980,974.23467953,0.00020629,2]
[309764094,1704102452600,61492.40813545,0.0002063,2]
[309764095,1704102453807,154.87609912,0.00020629,4]
[309764096,1704102468221,735.40707102,0.00020629,2]
[309764097,1704102471810,154.87609912,0.00020629,4]
[309764098,1704102481950,296.9965682,0.00020629,2]
[309764099,1704102487799,154.87609912,0.00020629,4]
[309764100,1704102497727,3205.77945367,0.00020629,2]
[309764101,1704102509802,154.87609912,0.00020629,4]
[309764102,1704102515732,3205.77945367,0.00020629,2]
[309764103,1704102526312,154.87609912,0.00020629,4]
[309764104,1704102535844,3205.77945367,0.00020629,2]
[309764105,1704102546297,154.87609912,0.00020629,4]
[309764106,1704102553731,246.97456816,0.00020629,2]
[309764107,1704102553990,309.6903097,0.00020629,2]
[309764108,1704102554163,154.87609912,0.00020629,2]
[309764109,1704102564303,154.87609912,0.00020629,4]
[309764110,1704102569990,169.73148302,0.00020629,2]
[309764111,1704102572116,195.03042912,0.00020629,2]
[309764112,1704102580807,154.87609912,0.00020629,4]
[309764113,1704102598799,154.87609912,0.00020629,4]
[309764121,1704102620810,154.87609912,0.00020629,4]
[309764159,1704102631978,-230.0137314,0.00021501,2]
[309764160,1704102631987,-171.10469175,0.00021502,2]
[309764162,1704102631997,-353.065123,0.00021602,2]
[309764164,1704102632007,-173.533206,0.00021918,2]
[309764166,1704102632016,-665.1471829,0.00021922,2]
[309764168,1704102632025,-283.160583,0.00021926,2]
[309764170,1704102632034,-3635.81957981,0.00022,2]
[309764172,1704102632043,-171.10469175,0.00022825,2]
[309764174,1704102632052,-790.91,0.00022915,3]
[309764176,1704102632061,-203.20502862,0.00022923,30]
[309764178,1704102632070,-6789.38942398,0.00022923,2]
[309764180,1704102632083,-1234.81076917,0.00022923,2]
[309764361,1704102639127,-154.87609912,0.00022922,4]
[309764363,1704102639136,-517.80530329,0.00022923,2]
[309764558,1704102641236,-650.67904065,0.00022923,2]
[309764560,1704102641247,-1081.36943122,0.00022923,2]
[309764562,1704102641259,-1036.47545688,0.00022923,2]
[309764564,1704102641270,-4979.62608152,0.00022923,2]
[309764566,1704102641280,-16763.8629243,0.00022924,2]
[309764568,1704102641289,-919.7280952,0.00022925,2]
[309764571,1704102641301,-2613.85729748,0.00022925,2]
[309764676,1704102645197,-185.44767136,0.00022877,2]
[309764677,1704102645207,-4891.4051887,0.00022925,2]
[309764731,1704102646326,-1.47539913,0.00022925,2]
[309764747,1704102795619,597.588804,0.0002092,2]
[309764748,1704102832606,10979.48808764,0.0001631,2]
[309764750,1704102849318,200.58184039,0.000125,2]
[309764752,1704102867768,1037.00033896,0.00021,2]
[309764753,1704102945441,508.63291032,0.00021,5]
[309764754,1704102946249,5210.01915065,0.00021,2]
[309764755,1704102948047,154.87609912,0.00021,2]
[309764756,1704102948217,155.14279736,0.00021,2]
[309764757,1704102948722,18831.63477527,0.00021,2]
[309764758,1704102949042,974.23467953,0.00019729,2]
[309764759,1704102950029,297.6005845,0.00021,2]
[309764760,1704102952339,16308.12817517,0.00016,5]
[309764761,1704102954565,154.87609912,0.00021,2]
[309764762,1704102955416,225.62738228,0.00021,2]
[309764763,1704102955878,205.38078422,0.00021,2]
[309764764,1704102957370,533.17266667,0.00021,2]
[309764765,1704102960238,284.96428911,0.00021,2]
[309764768,1704102968748,18831.63477527,0.00021,2]
[309764769,1704102969034,523.11077865,0.00019729,2]
[309764770,1704102970015,297.6005845,0.00021,2]
[309764771,1704102972538,154.87609912,0.00021,2]
[309764772,1704102973445,533.17266667,0.00021,2]
[309764773,1704102974058,154.87609912,0.00021,2]
[309764774,1704102977398,380.32767823,0.00021,2]
[309764775,1704102986726,16006.98476751,0.00021,2]
[309764776,1704102986748,2824.65000776,0.00021,2]
[309764777,1704102988037,297.6005845,0.00021,2]
[309764778,1704102990542,154.87609912,0.00021,2]
[309764779,1704102993378,533.17266667,0.00021,2]
[309764780,1704102996177,154.87609912,0.00021,2]
[309764781,1704103002730,3168.00824863,0.00021,2]
[309764782,1704103008536,154.87609912,0.00021,2]
[309764783,1704103010059,297.6005845,0.00021,2]
[309764784,1704103011359,533.17266667,0.00021,2]
[309764785,1704103012075,154.87609912,0.00021,2]
[309764786,1704103026543,258.83347214,0.00021,2]
[309764787,1704103029379,318.94181755,0.00021,2]
[309764788,1704103030035,322.92054477,0.00021,2]
[309764789,1704103032066,254.54973642,0.00021,2]
[309764790,1704103195121,7200.0,0.00021,2]
[309764791,1704103202865,24900.0,0.00020892,2]
[309764792,1704103258252,5262.05814536,0.00019695,2]
[309764793,1704103282555,650.75922959,0.00020823,2]
[309764794,1704103303767,269.21790471,0.0002,2]
[309764795,1704103378887,581.954985,0.00020884,2]
[309764796,1704103427723,175.310495,0.00020594,2]
[309764797,1704103504977,-235.12094964,0.00021855,2]
[309764798,1704103505000,-274.09651383,0.00021855,2]
[309764799,1704103505023,-154.87609912,0.00021856,4]
[309764800,1704103505045,-2030.79634565,0.00021856,2]
[309764801,1704103505067,-2507.02872787,0.00021857,2]
[309764802,1704103505089,-300.69795408,0.00021857,2]
[309764803,1704103505111,-4497.38340981,0.00021858,2]
[309764804,1704103506154,685.0133892,0.00020594,2]
[309764805,1704103520410,154.87609912,0.00019673,3]
[309764806,1704103524240,397.98422736,0.00020594,2]
[309764807,1704103538415,154.87609912,0.0001967,3]
[309764808,1704103542737,7500.0,0.00020594,2]
[309764809,1704103553070,245.0,0.0001,2]
[309764810,1704103554290,154.87609912,0.00020594,2]
[309764811,1704103558414,154.87609912,0.0001967,3]
[309764812,1704103574273,189.47459977,0.00020594,2]
[309764813,1704103578420,154.87609912,0.0001967,3]
[309764814,1704103604427,154.87609912,0.00019662,3]
[309764815,1704103619549,24900.0,0.00020822,2]
[309764816,1704103624423,154.87609912,0.00019662,3]
[309764817,1704103644434,154.87609912,0.00019662,3]
[309764819,1704103662424,154.87609912,0.00019673,3]
[309764822,1704103678424,154.87609912,0.00019625,3]
[309764825,1704103694426,154.87609912,0.00019625,3]
[309764834,1704103716437,154.87609912,0.00019625,3]
[309764838,1704103736440,154.87609912,0.00019621,3]
[309764842,1704103752426,154.87609912,0.00019621,3]
[309764848,1704103774433,154.87609912,0.00019621,3]
[309764862,1704103794445,154.87609912,0.00019613,3]
[309764872,1704103812442,154.87609912,0.00019613,3]
[309764874,1704103828469,154.87609912,0.00019613,3]
[309764939,1704103838339,-259.64144515,0.00021787,7]
[309764941,1704103838349,-1028.57928007,0.00021788,2]
[309764943,1704103838358,-18.22594902,0.00021788,2]
[309764945,1704103838370,-2070.97315891,0.00021788,2]
[309764947,1704103838379,-785.29835859,0.00021788,2]
[309764949,1704103838394,-85.38953807,0.00021788,2]
[309764951,1704103838404,-7928.30997934,0.00021788,2]
[309764953,1704103838413,-851.81467386,0.00021789,2]
[309764955,1704103838422,-524.63560134,0.00021789,2]
[309764957,1704103838432,-2507.02872787,0.0002179,2]
[309764959,1704103838441,-4801.68050956,0.0002179,2]
[309764961,1704103838450,-26366.26316002,0.0002179,2]
[309764963,1704103838459,-261.2068474,0.00021791,2]
[309764965,1704103838468,-2988.74038955,0.00021791,2]
[309764967,1704103838477,-196.25235172,0.00021792,2]
[309764969,1704103838486,-675.55479392,0.00021792,2]
[309764971,1704103838495,-185.44767136,0.00021814,2]
[309764973,1704103838505,-155.21273773,0.00021848,2]
[309764975,1704103838514,-155.143211,0.00021858,2]
[309764977,1704103838523,-1871.98625849,0.00021859,2]
[309764979,1704103838533,-225.12358269,0.00021859,2]
[309764981,1704103838542,-277.23116721,0.00021859,2]
[309764983,1704103838551,-399.51918637,0.0002186,2]
[309764985,1704103838559,-16153.19247378,0.00021861,2]
[309764987,1704103838571,-2692.47169873,0.00021861,2]
[309765027,1704103842447,154.87609912,0.00019609,3]
[309765040,1704103843060,-401.97734318,0.00021787,2]
[309765099,1704103846138,-355.0,0.00021787,2]
[309765139,1704103864478,154.87609912,0.00019673,3]
[309765140,1704103872984,518.981749,0.00020881,2]
[309765141,1704103883663,433.83948639,0.00019761,2]
[309765142,1704103884457,154.87609912,0.00019672,3]
[309765143,1704103902461,154.87609912,0.00019672,3]
[309765144,1704103903474,924.1533848,0.0002087,2]
[309765146,1704103916340,175.093622,0.00020585,2]
[309765147,1704103922468,154.87609912,0.00019672,3]
[309765148,1704103938961,154.87609912,0.00019672,3]
[309765149,1704103957047,154.87609912,0.00019672,3]
[309765151,1704103972958,154.87609912,0.00019603,3]
[309765152,1704103991462,154.87609912,0.00019601,3]
[309765153,1704103994942,154.87609912,0.000196,2]
[309765154,1704104009459,154.87609912,0.00019601,3]
[309765155,1704104035970,154.87609912,0.000196,3]
[309765156,1704104049974,154.87609912,0.000196,3]
[309765157,1704104063983,154.87609912,0.0001959,3]
[309765158,1704104066209,24900.0,0.0002082,2]
[309765159,1704104083982,154.87609912,0.00019589,3]
[309765160,1704104100483,154.87609912,0.00019589,3]
[309765161,1704104118486,154.87609912,0.00019588,3]
[309765162,1704104132030,806.662028,0.00020763,2]
[309765163,1704104140511,154.87609912,0.00019579,3]
[309765164,1704104162982,154.87609912,0.00019577,3]
[309765165,1704104178993,154.87609912,0.00019576,3]
[309765166,1704104201085,154.87609912,0.00019575,3]
[309765167,1704104206690,943.79443279,0.00019574,2]
[309765168,1704104206717,450.8673199,0.00019574,2]
[309765169,1704104221553,154.87609912,0.00019575,3]
[309765170,1704104237498,154.87609912,0.00019575,3]
[309765171,1704104259550,154.87609912,0.0001957,3]
[309765172,1704104273991,154.87609912,0.0001957,3]
[309765173,1704104291995,154.87609912,0.0001957,3]
[309765174,1704104305389,487.49513,0.00020742,2]
[309765175,1704104316003,154.87609912,0.00019562,3]
[309765176,1704104335993,154.87609912,0.00019562,3]
[309765177,1704104354501,154.87609912,0.00019562,3]
[309765178,1704104369180,173.518618,0.00020468,2]
[309765179,1704104374505,154.87609912,0.00019559,3]
[309765180,1704104390601,154.87609912,0.00019559,3]
[309765181,1704104408512,154.87609912,0.00019559,3]
[309765182,1704104425010,154.87609912,0.00019552,3]
[309765183,1704104443015,154.87609912,0.00019551,3]
[309765184,1704104461010,154.86062544,0.00019547,3]
[309765185,1704104481528,154.86062544,0.00019546,3]
[309765186,1704104485117,289.22632426,0.00019761,2]
[309765187,1704104489349,24900.0,0.00020719,2]
[309765188,1704104503522,154.86062544,0.00019545,3]
[309765189,1704104530021,154.86062544,0.00019545,3]
[309765190,1704104544034,154.86062544,0.00019538,3]
[309765191,1704104564121,154.86062544,0.00019538,3]
[309765192,1704104586030,154.86062544,0.00019535,3]
[309765193,1704104595516,1817.83080304,0.00021,2]
[309765194,1704104600312,154.84515485,0.00019545,2]
[309765195,1704104602543,154.84515485,0.00019534,3]
[309765196,1704104618535,154.84515485,0.00019533,3]
[309765197,1704104638527,154.84515485,0.00019526,3]
[309765198,1704104655067,154.84515485,0.00019526,3]
[309765199,1704104679057,154.84515485,0.00019525,3]
[309765200,1704104695055,154.84515485,0.00019524,3]
[309765201,1704104713645,154.84515485,0.00019524,3]
[309765202,1704104731563,154.84515485,0.00019523,3]
[309765203,1704104751559,154.84515485,0.00019513,3]
[309765204,1704104766065,154.84515485,0.00019513,3]
[309765205,1704104784061,154.84515485,0.00019512,3]
[309765206,1704104793540,177.060285,0.00020411,2]
[309765207,1704104802067,154.84515485,0.00019512,3]
[309765208,1704104806710,243.747565,0.00020684,2]
[309765209,1704104822563,154.84515485,0.00019509,3]
[309765210,1704104846571,154.84515485,0.00019512,3]
[309765211,1704104866587,154.84515485,0.00019508,3]
[309765213,1704104885071,154.84515485,0.00019508,3]
[309765214,1704104907070,154.84515485,0.00019508,3]
[309765215,1704104929077,154.84515485,0.00019498,3]
[309765217,1704104943579,154.84515485,0.00019498,3]
[309765221,1704104963602,154.84515485,0.00019496,3]
[309765222,1704104987579,154.84515485,0.00019494,3]
[309765231,1704105004177,154.84515485,0.00019494,3]
[309765233,1704105022096,154.84515485,0.00019486,3]
[309765291,1704105032280,-154.84515485,0.00021649,2]
[309765293,1704105032290,-559.40932026,0.00021649,2]
[309765295,1704105032300,-154.84515485,0.00021649,2]
[309765297,1704105032309,-154.84515485,0.00021649,2]
[309765299,1704105032319,-154.84515485,0.00021649,2]
[309765301,1704105032329,-2507.02872787,0.00021649,2]
[309765303,1704105032339,-2089.19910793,0.0002165,2]
[309765305,1704105032349,-675.55479392,0.00021651,2]
[309765307,1704105032360,-154.84515485,0.00021652,2]
[309765309,1704105032369,-154.84515485,0.00021652,2]
[309765311,1704105032379,-36751.74188348,0.00021652,2]
[309765313,1704105032389,-10470.42522499,0.00021653,2]
[309765315,1704105032398,-155.01198607,0.00021661,2]
[309765317,1704105032408,-26366.26316002,0.00021662,2]
[309765319,1704105032419,-450.53484104,0.0002175,2]
[309765321,1704105032429,-579.16827562,0.00021751,2]
[309765323,1704105032439,-1262.45083956,0.00021772,2]
[309765325,1704105032449,-1600.4807732,0.00021785,2]
[309765326,1704105032459,-575.76,0.00021851,3]
[309765328,1704105032470,-1016.24068765,0.00021857,2]
[309765330,1704105032481,-196.87198904,0.00021859,2]
[309765332,1704105032492,-999.61370417,0.00021859,2]
[309765334,1704105032503,-633.22435873,0.00021859,2]
[309765337,1704105032513,-366.81404562,0.00021859,2]
[309765338,1704105032524,-197.79131711,0.0002186,2]
[309765538,1704105038102,154.84515485,0.00019485,3]
[309765591,1704105039167,-154.84515485,0.00021648,2]
[309765592,1704105039176,-154.84515485,0.00021648,2]
[309765593,1704105039185,-249.92008549,0.0002186,2]
[309765594,1704105039195,-196.26815957,0.0002186,2]
[309765595,1704105039207,-4229.85944487,0.0002186,2]
[309765596,1704105039216,-483.60474606,0.0002186,2]
[309765597,1704105039318,-260.36352198,0.0002186,7]
[309765598,1704105039327,-948.11238546,0.0002186,2]
[309765600,1704105039337,-321.09616018,0.0002186,2]
[309765601,1704105039347,-31360.51000951,0.00021861,2]
[309765602,1704105039357,-209.29895236,0.00021902,2]
[309765603,1704105039367,-500.0,0.00021917,4]
[309765604,1704105039376,-500.0,0.00021917,4]
[309765605,1704105039386,-500.0,0.00021917,4]
[309765606,1704105039395,-575.49388256,0.00021917,4]
[309765607,1704105039404,-501.54365902,0.00021917,2]
[309765608,1704105039413,-499.99999999,0.00021917,4]
[309765609,1704105039422,-500.0,0.00021917,4]
[309765610,1704105039432,-512.82232831,0.00021917,4]
[309765611,1704105039442,-166.666666,0.00021918,2]
[309765612,1704105039451,-155.20420914,0.00021921,2]
[309765613,1704105039460,-155.78372176,0.00021921,2]
[309765614,1704105039470,-525.13310452,0.00021921,2]
[309765615,1704105039479,-166.83948169,0.00021921,2]
[309765616,1704105039488,-155.23623402,0.00021921,2]
[309765617,1704105039497,-244.2396361,0.00021921,2]
[309765618,1704105039506,-310.782126,0.00021921,2]
[309765619,1704105039516,-155.01277629,0.00021922,2]
[309765620,1704105039525,-1670.0629526,0.00021922,2]
[309765621,1704105039534,-172.83925,0.00022178,2]
[309765622,1704105039543,-166.666666,0.00022431,2]
[309765623,1704105039553,-357.25247607,0.00022924,2]
[309765624,1704105039563,-3107.07587579,0.00022926,2]
[309765625,1704105039572,-970.61630042,0.00022928,2]
[309765626,1704105039583,-155.10852942,0.00022928,2]
[309765627,1704105039593,-728.10757982,0.00022928,2]
[309765628,1704105039603,-154.97410904,0.00022928,2]
[309765629,1704105039613,-246.36299273,0.00022928,2]
[309765630,1704105039624,-273.99692744,0.00022928,2]
[309765631,1704105039634,-13700.88694863,0.00022928,2]
[309765632,1704105039643,-166.75305459,0.00022928,2]
[309765633,1704105039654,-155.56891265,0.00022928,2]
[309765634,1704105039663,-161.28055759,0.00022928,2]
[309765635,1704105039674,-305.61228515,0.00022928,2]
[309765636,1704105039684,-155.55276434,0.00022928,2]
[309765637,1704105039694,-272.18420681,0.00022928,2]
[309765638,1704105039703,-195.91892388,0.00022928,2]
[309765639,1704105039714,-6109.2534919,0.00022929,2]
[309765640,1704105039723,-1949.25255817,0.00022929,2]